bitfinex/quotes_SOLUSD_20240607
["timestamp","ask_amount","ask_price","bid_price","bid_amount"]
[1717749063383,2.1498,172.11,172.07,7.31]
[1717749063582,2.1498,172.11,172.08,7.31]
[1717749065006,2.1498,172.11,172.02,1.16106937]
[1717749065204,2.1498,172.11,172.08,7.31]
[1717749065388,2.1499,172.1,172.08,7.31]
[1717749065703,2.1499,172.1,172.07,7.31]
[1717749065904,2.15,172.09,172.06,7.31]
[1717749068090,2.15,172.09,172.01,6.6589]
[1717749068502,0.87453606,172.11,172.01,6.6589]
[1717749068503,2.1501,172.08,172.05,7.31]
[1717749069891,18.0589,172.11,172.05,7.31]
[1717749069892,2.1501,172.09,172.05,7.31]
[1717749070394,2.1501,172.09,172.01,6.6589]
[1717749070594,2.1501,172.09,172.05,7.31]
[1717749071883,2.1501,172.08,172.01,6.6589]
[1717749072104,2.1501,172.08,172.04,7.31]
[1717749073002,2.15,172.09,172.04,7.31]
[1717749074611,2.1501,172.08,171.99,29.24]
[1717749074790,2.3201,172.08,172.04,7.31]
[1717749075992,0.17,172.08,172.04,7.31]
[1717749076714,0.17,172.08,172.05,7.31]
[1717749076915,0.17,172.08,171.99,29.24]
[1717749077096,0.17,172.08,172.05,7.31]
[1717749077716,0.17,172.08,172.04,7.31]
[1717749081722,0.17,172.08,172.05,7.31]
[1717749085724,2.3201,172.09,172.05,7.31]
[1717749087306,2.1501,172.09,172.05,7.31]
[1717749088724,2.1501,172.09,172.06,7.31]
[1717749088930,2.3199,172.1,172.06,7.31]
[1717749089240,2.1499,172.1,172.06,7.31]
[1717749090113,2.15,172.09,172.06,7.31]
[1717749091541,2.1499,172.1,172.06,7.31]
[1717749092232,2.1501,172.09,172.06,7.31]
[1717749100514,2.1501,172.09,171.99,29.24]
[1717749100715,2.1501,172.09,172.06,7.31]
[1717749105649,2.1501,172.08,172.05,7.31]
[1717749106041,2.15,172.09,172.05,7.31]
[1717749107953,2.1499,172.1,172.07,7.31]
[1717749110053,2.15,172.09,172.07,7.31]
[1717749112741,2.1499,172.1,172.07,7.31]
[1717749120654,2.15,172.09,172.07,7.31]
[1717749120854,2.1499,172.1,172.07,7.31]
[1717749121166,19.3461,172.13,172.07,7.31]
[1717749121486,2.1494,172.14,172.11,7.31]
[1717749121651,2.1494,172.14,172.12,7.31]
[1717749122556,2.1495,172.13,172.12,7.31]
[1717749122761,2.1495,172.13,172.11,7.31]
[1717749123271,2.1496,172.12,172.09,6.4321]
[1717749123475,2.1496,172.12,172.11,7.31]
[1717749124370,2.1496,172.12,172.1,7.31]
[1717749125847,2.1496,172.12,172.09,13.7421]
[1717749126248,2.1496,172.12,172.05,16.2128]
[1717749126461,2.1496,172.12,172.08,7.31]
[1717749128666,2.1496,172.13,172.09,7.31]
[1717749129066,2.1496,172.13,172.1,7.31]
[1717749129956,2.1496,172.12,172.05,16.2128]
[1717749130476,2.1496,172.12,172.09,7.31]
[1717749132875,2.1496,172.13,172.1,7.31]
[1717749133470,2.1496,172.13,172.11,7.31]
[1717749134172,2.1494,172.15,172.11,7.31]
[1717749134352,2.1494,172.14,172.11,7.31]
[1717749135647,2.1494,172.14,172.1,7.31]
[1717749137373,2.1494,172.14,172.05,16.2128]
[1717749137374,4.2969,172.22,172.13,7.31]
[1717749137577,15.0384,172.23,172.18,7.31]
[1717749137578,2.1485,172.21,172.18,7.31]
[1717749139077,4.2966,172.23,172.18,7.31]
[1717749139078,2.1486,172.2,172.18,7.31]
[1717749139452,2.1486,172.21,172.18,7.31]
[1717749139853,2.1486,172.21,172.18,6.930047]
[1717749140073,2.1486,172.2,172.18,6.930047]
[1717749142490,2.1486,172.21,172.18,6.930047]
[1717749143499,2.1486,172.2,172.18,6.930047]
[1717749143867,2.1484,172.22,172.19,7.31]
[1717749144085,2.1483,172.23,172.21,7.31]
[1717749146513,2.1486,172.21,172.18,7.31]
[1717749146676,2.1486,172.2,172.18,7.31]
[1717749147274,2.1485,172.21,172.18,7.31]
[1717749148497,2.1485,172.21,172.14,6.412]
[1717749148678,2.1485,172.21,172.18,7.31]
[1717749150598,2.1484,172.22,172.19,7.31]
[1717749153534,2.1486,172.21,172.18,7.31]
[1717749153806,4.2966,172.23,172.16,7.31]
[1717749153807,12.8899,172.23,172.16,7.31]
[1717749154032,12.8899,172.23,172.17,30.0]
[1717749154033,2.1486,172.21,172.17,30.0]
[1717749154206,2.1486,172.21,172.18,7.31]
[1717749156614,2.1486,172.21,172.14,6.412]
[1717749156797,2.1486,172.21,172.17,7.31]
[1717749157909,0.17,172.22,172.15,30.0]
[1717749158110,2.1487,172.2,172.14,6.412]
[1717749158321,2.1487,172.2,172.17,7.31]
[1717749159195,2.1486,172.21,172.17,7.31]
[1717749163905,2.1486,172.21,172.17,13.5562]
[1717749164118,2.3184,172.22,172.17,13.5562]
[1717749164821,2.3184,172.22,172.18,7.31]
[1717749165709,2.1484,172.22,172.19,7.31]
[1717749168018,2.1485,172.21,172.19,7.31]
[1717749169212,2.1484,172.22,172.19,7.31]
[1717749170237,2.1485,172.21,172.19,7.31]
[1717749171649,2.1484,172.22,172.19,7.31]
[1717749172644,2.1485,172.21,172.19,7.31]
[1717749173435,2.1484,172.22,172.19,7.31]
[1717749173747,2.1485,172.21,172.19,7.31]
[1717749174425,2.1484,172.22,172.19,7.31]
[1717749174743,2.1484,172.22,172.2,7.31]
[1717749178741,2.1485,172.21,172.2,7.31]
[1717749182436,2.1484,172.22,172.2,7.31]
[1717749182634,2.1485,172.21,172.17,0.96761358]
[1717749182847,2.1485,172.21,172.19,7.31]
[1717749183047,2.1486,172.2,172.11,21.9207]
[1717749183232,2.1486,172.2,172.12,65.0]
[1717749183436,2.1486,172.2,172.17,7.31]
[1717749183648,2.1486,172.2,172.12,65.0]
[1717749183840,2.1486,172.2,172.17,7.31]
[1717749185037,2.1487,172.19,172.12,65.0]
[1717749185442,2.1487,172.19,172.16,7.31]
[1717749185630,2.1487,172.2,172.12,65.0]
[1717749185833,2.1487,172.2,172.16,7.31]
[1717749186352,2.1486,172.21,172.17,7.31]
[1717749191135,2.1486,172.21,172.12,65.0]
[1717749191336,2.1486,172.21,172.17,7.31]
[1717749192469,2.1486,172.21,172.12,65.0]
[1717749192470,2.1486,172.21,172.18,7.31]
[1717749194537,12.89,172.23,172.12,20.0]
[1717749194538,2.1487,172.2,172.12,20.0]
[1717749194741,2.1487,172.2,172.17,7.31]
[1717749195165,2.1486,172.21,172.17,7.31]
[1717749196367,2.1486,172.21,172.18,7.31]
[1717749197256,2.1486,172.21,172.12,20.0]
[1717749197464,2.1486,172.21,172.17,7.31]
[1717749200079,2.1486,172.21,172.18,7.31]
[1717749202379,2.1484,172.22,172.19,7.31]
[1717749203891,2.1485,172.21,172.19,7.31]
[1717749205566,2.1484,172.22,172.19,7.31]
[1717749205880,2.1484,172.22,172.2,7.31]
[1717749207481,2.1485,172.21,172.2,7.31]
[1717749207657,2.1485,172.21,172.19,7.31]
[1717749208084,2.1484,172.22,172.19,7.31]
[1717749209591,2.1484,172.22,172.12,20.0]
[1717749209592,2.1485,172.21,172.12,20.0]
[1717749209766,2.1485,172.21,172.18,7.31]
[1717749209969,2.1487,172.2,172.12,20.0]
[1717749210164,2.1487,172.2,172.11,21.9207]
[1717749210387,2.1489,172.18,172.16,7.31]
[1717749210590,2.1489,172.18,172.11,21.9207]
[1717749210780,4.297,172.22,172.11,21.9207]
[1717749211006,2.1487,172.2,172.16,7.31]
[1717749211212,2.1488,172.19,172.16,7.31]
[1717749211506,2.1488,172.19,172.15,7.31]
[1717749212792,2.1488,172.19,172.11,6.4175]
[1717749212993,2.1488,172.19,172.15,7.31]
[1717749214208,2.1487,172.2,172.15,7.31]
[1717749215111,2.1487,172.2,172.16,7.31]
[1717749215298,2.1487,172.2,172.17,7.31]
[1717749216113,2.1487,172.2,172.11,6.4175]
[1717749216298,2.1487,172.2,172.17,7.31]
[1717749221518,2.1488,172.19,172.17,7.31]
[1717749222606,0.87453606,172.2,172.14,7.31]
[1717749222806,2.1492,172.16,172.13,7.31]
[1717749224487,2.1492,172.16,172.08,29.24]
[1717749224696,2.1492,172.16,172.13,7.31]
[1717749224915,2.1492,172.16,172.07,28.1008]
[1717749225094,2.1492,172.16,172.08,55.05]
[1717749225302,2.1492,172.16,172.08,49.24]
[1717749225610,2.1492,172.16,172.13,7.31]
[1717749227100,2.1491,172.17,172.13,7.31]
[1717749228716,2.1491,172.17,172.14,7.31]
[1717749229418,2.1491,172.17,172.08,55.05]
[1717749229593,2.1491,172.17,172.14,7.31]
[1717749231318,2.1489,172.18,172.15,7.31]
[1717749231526,2.1489,172.18,172.16,7.31]
[1717749231817,2.1489,172.18,172.17,7.31]
[1717749233096,4.4675,172.2,172.17,7.31]
[1717749233097,4.2975,172.2,172.17,7.31]
[1717749233303,2.1488,172.19,172.17,7.31]
[1717749233504,10.7422,172.22,172.17,7.31]
[1717749233725,2.1487,172.19,172.17,7.31]
[1717749233910,2.1487,172.2,172.17,7.31]
[1717749237900,2.1487,172.2,172.18,7.31]
[1717749239530,2.1485,172.21,172.19,7.31]
[1717749240014,2.1485,172.21,172.18,7.31]
[1717749240219,2.1485,172.21,172.12,22.5521]
[1717749240427,2.1485,172.21,172.18,7.31]
[1717749240807,2.1486,172.2,172.18,7.31]
[1717749241627,2.1486,172.21,172.18,7.31]
[1717749244622,2.1484,172.22,172.19,7.31]
[1717749244837,4.2963,172.24,172.2,7.31]
[1717749245147,2.1483,172.23,172.2,7.31]
[1717749245735,2.1484,172.22,172.2,7.31]
[1717749246521,2.1484,172.22,172.21,7.31]
[1717749253322,4.2963,172.24,172.21,7.31]
[1717749253323,2.1483,172.23,172.21,7.31]
[1717749256028,2.1484,172.22,172.18,6.568]
[1717749256337,2.1484,172.22,172.13,45.0]
[1717749256338,2.1484,172.22,172.2,7.31]
[1717749256828,2.1483,172.23,172.21,7.31]
[1717749257011,2.1482,172.23,172.22,7.31]
[1717749257211,2.1482,172.24,172.22,7.31]
[1717749257617,2.1481,172.25,172.23,7.31]
[1717749259036,2.1481,172.24,172.22,7.31]
[1717749259610,19.3307,172.27,172.22,7.31]
[1717749259611,2.1481,172.25,172.22,7.31]
[1717749260738,2.1481,172.25,172.23,7.31]
[1717749261744,2.1481,172.24,172.22,7.31]
[1717749262528,2.1481,172.24,172.17,35.5559]
[1717749262720,2.1481,172.24,172.21,7.31]
[1717749264748,2.1481,172.25,172.21,7.31]
[1717749266543,2.1481,172.25,172.22,7.31]
[1717749269942,2.1481,172.24,172.17,13.6259]
[1717749270149,2.1479,172.26,172.17,35.5559]
[1717749270334,2.148,172.25,172.17,51.4647]
[1717749271454,2.1479,172.26,172.17,51.4647]
[1717749272935,2.1479,172.26,172.22,7.31]
[1717749273342,4.2956,172.27,172.22,7.31]
[1717749273343,2.148,172.25,172.22,7.31]
[1717749274741,2.148,172.25,172.17,22.2247]
[1717749274944,2.148,172.25,172.22,7.31]
[1717749275642,2.148,172.25,172.17,51.4647]
[1717749275847,2.148,172.25,172.22,7.31]
[1717749276048,2.1479,172.26,172.23,7.31]
[1717749276447,2.1479,172.26,172.24,7.31]
[1717749277563,2.1479,172.26,172.23,7.31]
[1717749278560,2.1479,172.26,172.17,51.4647]
[1717749278868,2.1479,172.26,172.23,7.31]
[1717749279372,2.148,172.25,172.17,51.4647]
[1717749279545,2.148,172.25,172.23,7.31]
[1717749279744,2.1479,172.26,172.23,7.31]
[1717749283745,2.1479,172.26,172.24,7.31]
[1717749285577,2.1478,172.27,172.24,7.31]
[1717749286977,2.1478,172.27,172.25,7.31]
[1717749287782,4.2946,172.31,172.26,7.31]
[1717749288077,2.1475,172.29,172.27,7.31]
[1717749288885,2.1475,172.29,172.26,7.31]
[1717749289100,2.1475,172.29,172.27,7.31]
[1717749294386,2.1474,172.3,172.28,7.31]
[1717749300367,2.1473,172.31,172.28,7.31]
[1717749300562,2.1473,172.31,172.29,7.31]
[1717749301980,2.1474,172.3,172.29,7.31]
[1717749302175,2.1474,172.3,172.28,7.31]
[1717749303059,2.1474,172.3,172.29,7.31]
[1717749303465,2.1473,172.31,172.29,7.31]
[1717749303664,2.1473,172.31,172.3,7.31]
[1717749305968,2.1471,172.33,172.3,7.31]
[1717749306286,2.1469,172.34,172.32,7.31]
[1717749306472,2.1469,172.34,172.31,7.31]
[1717749307494,2.147,172.33,172.26,29.24]
[1717749307787,2.147,172.33,172.31,7.31]
[1717749309593,2.147,172.33,172.22,135.15634289]
[1717749309767,2.147,172.33,172.3,7.31]
[1717749311269,2.147,172.33,172.26,7.31]
[1717749311597,2.147,172.33,172.29,7.31]
[1717749312067,4.2936,172.35,172.23,20.0]
[1717749312068,7.31,172.34,172.23,20.0]
[1717749312270,2.1474,172.31,172.23,20.0]
[1717749312468,2.1474,172.31,172.26,7.31]
[1717749312870,2.1474,172.31,172.23,20.0]
[1717749313092,2.1474,172.31,172.26,7.31]
[1717749314501,2.1474,172.31,172.23,20.0]
[1717749314675,2.1474,172.31,172.22,6.4299]
[1717749314877,2.1474,172.31,172.26,7.31]
[1717749316580,2.1472,172.32,172.27,7.31]
[1717749317301,2.1472,172.31,172.27,7.31]
[1717749319216,2.1472,172.32,172.27,7.31]
[1717749320603,2.1473,172.31,172.22,6.4299]
[1717749320787,2.1473,172.31,172.27,7.31]
[1717749320988,2.1473,172.31,172.22,6.4299]
[1717749321294,2.1473,172.31,172.27,7.31]
[1717749323323,2.1472,172.32,172.27,7.31]
[1717749324505,2.1472,172.31,172.27,7.31]
[1717749325718,2.1472,172.31,172.22,6.4299]
[1717749326182,2.1472,172.31,172.27,7.31]
[1717749327297,2.1472,172.32,172.27,7.31]
[1717749327882,2.1472,172.32,172.22,6.4299]
[1717749328106,2.1472,172.32,172.28,7.31]
[1717749328316,2.1472,172.32,172.23,45.0]
[1717749328499,2.1472,172.32,172.28,7.31]
[1717749329517,2.1472,172.32,172.23,45.0]
[1717749329709,2.1472,172.32,172.28,7.31]
[1717749330514,2.1472,172.32,172.23,45.0]
[1717749330715,2.1473,172.31,172.28,7.31]
[1717749330907,2.1473,172.31,172.23,45.0]
[1717749331213,2.1473,172.31,172.28,7.31]
[1717749331915,2.1473,172.31,172.23,45.0]
[1717749332095,2.1473,172.31,172.28,7.31]
[1717749332297,2.1472,172.32,172.28,7.31]
[1717749338117,2.1472,172.32,172.29,7.31]
[1717749340525,2.1473,172.31,172.23,45.0]
[1717749340824,2.1473,172.31,172.29,7.31]
[1717749344603,2.1473,172.31,172.28,7.31]
[1717749346710,2.1472,172.32,172.29,7.31]
[1717749347117,2.1472,172.32,172.3,7.31]
[1717749348011,2.1472,172.31,172.3,7.31]
[1717749349005,4.294,172.33,172.3,7.31]
[1717749349208,2.1472,172.31,172.23,45.0]
[1717749349430,2.1472,172.31,172.3,7.31]
[1717749349637,2.1472,172.31,172.23,45.0]
[1717749349929,2.1474,172.3,172.27,7.31]
[1717749350136,2.1474,172.3,172.28,7.31]
[1717749350330,2.1474,172.3,172.21,6.807]
[1717749350541,2.1474,172.3,172.27,7.31]
[1717749350755,2.1474,172.3,172.22,45.0]
[1717749351235,2.1474,172.3,172.27,7.31]
[1717749351834,2.1473,172.31,172.27,7.31]
[1717749353321,2.1476,172.29,172.22,45.0]
[1717749353515,2.1476,172.29,172.26,7.31]
[1717749354023,2.1476,172.29,172.21,6.467]
[1717749354228,2.1474,172.3,172.26,7.31]
[1717749355043,5.16903606,172.32,172.21,6.467]
[1717749355044,2.1475,172.29,172.21,6.467]
[1717749355249,2.1476,172.28,172.21,6.467]
[1717749355412,2.1476,172.29,172.21,6.467]
[1717749355619,2.1476,172.29,172.25,7.31]
[1717749356445,2.1477,172.28,172.21,6.467]
[1717749356613,2.1477,172.28,172.25,7.31]
[1717749357422,2.1475,172.29,172.25,7.31]
[1717749359243,2.1475,172.29,172.21,6.467]
[1717749359447,2.1475,172.29,172.25,7.31]
[1717749362734,8.35453606,172.28,172.17,6.0171]
[1717749363046,2.1481,172.24,172.21,7.31]
[1717749363244,11.7756,172.27,172.21,7.31]
[1717749363245,2.1481,172.25,172.21,7.31]
[1717749363423,2.1481,172.25,172.17,13.3271]
[1717749363626,2.1481,172.25,172.17,35.2571]
[1717749364341,2.1481,172.24,172.17,35.2571]
[1717749364629,2.1481,172.24,172.21,7.31]
[1717749366142,2.1481,172.24,172.15,15.8579]
[1717749366330,2.1481,172.24,172.21,7.31]
[1717749367237,2.1481,172.25,172.21,7.31]
[1717749368248,2.1481,172.24,172.21,7.31]
[1717749370054,2.1481,172.24,172.22,7.31]
[1717749374733,2.1481,172.24,172.18,1.74145884]
[1717749374936,2.1481,172.24,172.22,7.31]
[1717749376450,2.1481,172.24,172.18,1.74145884]
[1717749376839,2.1481,172.24,172.22,7.31]
[1717749377042,2.1482,172.23,172.17,29.24]
[1717749377643,2.1482,172.23,172.22,7.31]
[1717749378559,2.1482,172.24,172.22,7.31]
[1717749381958,2.1482,172.23,172.22,7.31]
[1717749382848,5.698,172.24,172.13,6.2964]
[1717749383056,2.1487,172.2,172.14,7.31]
[1717749383452,2.1487,172.2,172.15,7.31]
[1717749383969,11.6069,172.22,172.15,7.31]
[1717749383970,2.1486,172.21,172.15,7.31]
[1717749384875,2.1486,172.21,172.16,7.31]
[1717749387877,2.1486,172.21,172.17,7.31]
[1717749388962,2.1484,172.22,172.17,7.31]
[1717749389275,0.87453606,172.23,172.17,7.31]
[1717749389471,2.1484,172.22,172.17,7.31]
[1717749389688,2.1484,172.22,172.18,2.1488]
[1717749389852,2.1484,172.22,172.19,2.1487]
[1717749390979,2.1484,172.22,172.18,2.1488]
[1717749392457,2.1484,172.22,172.19,2.1487]
[1717749397499,2.1484,172.22,172.18,9.4588]
[1717749398073,2.1485,172.21,172.18,9.4588]
[1717749398782,2.1484,172.22,172.18,9.4588]
[1717749405687,2.1485,172.21,172.18,9.4588]
[1717749406569,2.1485,172.21,172.18,2.1488]
[1717749406977,2.1485,172.21,172.18,7.31]
[1717749407377,2.1485,172.21,172.18,9.4589]
[1717749407764,4.2966,172.23,172.18,9.4589]
[1717749407983,2.1484,172.22,172.18,9.4589]
[1717749409194,2.1484,172.22,172.18,2.1489]
[1717749409371,2.1484,172.22,172.18,9.4589]
[1717749409565,2.1485,172.21,172.18,9.4589]
[1717749411807,2.1486,172.2,172.17,2.1489]
[1717749412001,2.1486,172.2,172.17,9.4589]
[1717749412202,2.1486,172.2,172.18,7.31]
[1717749412494,2.1486,172.21,172.17,2.1489]
[1717749412680,2.1486,172.21,172.18,7.31]
[1717749412875,2.4884,172.22,172.18,9.4589]
[1717749413077,2.1485,172.21,172.18,7.31]
[1717749413284,2.1485,172.21,172.18,9.4589]
[1717749414310,2.1485,172.22,172.18,9.4589]
[1717749418781,2.1485,172.22,172.18,2.1489]
[1717749419078,2.1485,172.22,172.18,9.4589]
[1717749420100,29.60286657,172.42,172.14,0.81178587]
[1717749420101,4.296,172.26,172.14,0.81178587]
[1717749420284,8.5903,172.29,172.17,7.31]
[1717749420485,4.2949,172.3,172.23,2.1482]
[1717749420704,2.1478,172.27,172.23,9.4582]
[1717749421289,2.1479,172.26,172.23,9.4582]
[1717749421495,2.1479,172.26,172.23,7.31]
[1717749422088,2.1479,172.26,172.23,9.4582]
[1717749422292,2.1479,172.26,172.24,7.31]
[1717749422694,2.1479,172.26,172.23,9.4582]
[1717749423000,2.1479,172.26,172.23,7.31]
[1717749423216,2.1479,172.26,172.22,2.1483]
[1717749423381,2.1479,172.26,172.23,7.31]
[1717749424909,2.1478,172.27,172.24,7.31]
[1717749425486,6.4414,172.33,172.27,2.1477]
[1717749425692,2.1472,172.32,172.29,7.31]
[1717749425908,2.1471,172.32,172.29,7.31]
[1717749426386,2.1471,172.32,172.29,9.4575]
[1717749426587,2.1471,172.32,172.29,7.31]
[1717749428201,4.2933,172.36,172.31,7.31]
[1717749428390,27.2303,172.4,172.31,7.31]
[1717749428391,2.1469,172.34,172.31,7.31]
[1717749428706,2.147,172.33,172.31,7.31]
[1717749431611,2.147,172.33,172.29,2.1474]
[1717749432195,2.1471,172.32,172.29,2.1474]
[1717749432921,2.1471,172.33,172.29,2.1474]
[1717749433495,2.1471,172.32,172.29,2.1474]
[1717749434395,2.1471,172.33,172.29,2.1474]
[1717749434589,2.1471,172.33,172.3,7.31]
[1717749434798,2.1471,172.32,172.3,7.31]
[1717749435200,2.1471,172.33,172.3,7.31]
[1717749436197,2.1471,172.33,172.3,9.4574]
[1717749437415,2.1471,172.33,172.3,7.31]
[1717749438023,2.1471,172.32,172.3,7.31]
[1717749438388,2.1471,172.33,172.3,7.31]
[1717749440718,2.1471,172.33,172.3,9.4574]
[1717749440919,2.1471,172.32,172.3,7.31]
[1717749441123,10.904,172.35,172.3,7.31]
[1717749441418,2.147,172.33,172.3,7.31]
[1717749441801,2.147,172.33,172.3,9.4574]
[1717749442140,2.147,172.33,172.29,2.1474]
[1717749442438,2.147,172.33,172.3,7.31]
[1717749443624,2.1472,172.32,172.29,2.1474]
[1717749443934,2.1472,172.32,172.29,9.4574]
[1717749444530,2.1476,172.29,172.22,6.275]
[1717749444703,2.1476,172.29,172.25,9.4579]
[1717749444903,2.1477,172.28,172.25,9.4579]
[1717749445417,2.1477,172.28,172.25,2.1479]
[1717749446102,2.1478,172.27,172.24,9.458]
[1717749446296,2.1478,172.27,172.24,2.148]
[1717749446493,2.1478,172.27,172.24,9.458]
[1717749446926,2.1478,172.27,172.24,2.148]
[1717749447300,2.1477,172.28,172.24,2.148]
[1717749448741,2.1477,172.27,172.24,2.148]
[1717749449026,2.1477,172.28,172.24,2.148]
[1717749449525,2.1478,172.27,172.24,2.148]
[1717749450220,2.1476,172.28,172.25,2.148]
[1717749453106,2.1476,172.28,172.24,9.458]
[1717749453409,2.1477,172.28,172.24,9.458]
[1717749456812,2.1477,172.28,172.24,2.148]
[1717749457837,0.34,172.29,172.19,20.0]
[1717749458034,2.1479,172.26,172.19,20.0]
[1717749458211,0.34,172.29,172.23,7.31]
[1717749458532,0.34,172.29,172.25,2.148]
[1717749458533,2.4877,172.28,172.25,2.148]
[1717749459512,2.4877,172.28,172.24,9.4581]
[1717749459804,2.1477,172.27,172.24,9.4581]
[1717749460227,2.4877,172.28,172.24,9.4581]
[1717749460531,2.1478,172.27,172.24,9.4581]
[1717749461536,2.1478,172.27,172.24,2.1481]
[1717749462046,2.4877,172.28,172.24,2.1481]
[1717749462212,2.4877,172.28,172.25,2.148]
[1717749462935,2.4877,172.28,172.24,2.148]
[1717749463440,2.1477,172.27,172.24,2.148]
[1717749464616,0.34,172.28,172.24,2.148]
[1717749465436,2.1478,172.27,172.24,2.148]
[1717749465730,2.1479,172.26,172.23,2.1482]
[1717749465916,2.1479,172.26,172.22,2.1483]
[1717749467139,2.1479,172.26,172.23,2.1482]
[1717749467918,2.1479,172.26,172.22,9.4583]
[1717749469041,2.1479,172.26,172.23,2.1482]
[1717749473812,2.1478,172.27,172.23,2.1482]
[1717749474028,2.1478,172.27,172.24,2.1481]
[1717749474545,2.1479,172.26,172.23,2.1482]
[1717749476865,2.1479,172.26,172.22,2.1483]
[1717749477017,2.1479,172.26,172.22,9.4583]
[1717749477637,2.148,172.25,172.22,9.4583]
[1717749477945,2.1479,172.26,172.22,9.4583]
[1717749481726,2.1479,172.26,172.23,2.1482]
[1717749489631,2.1479,172.26,172.23,9.4582]
[1717749489826,4.2947,172.31,172.26,2.1478]
[1717749490132,2.1472,172.32,172.28,2.1476]
[1717749490550,2.1472,172.31,172.28,2.1476]
[1717749491134,2.1472,172.31,172.28,9.4576]
[1717749491333,2.1472,172.32,172.28,9.4576]
[1717749492034,2.1472,172.32,172.29,7.31]
[1717749493334,2.1472,172.32,172.29,9.4575]
[1717749494140,0.34,172.33,172.29,9.4575]
[1717749494540,2.1472,172.32,172.29,9.4575]
[1717749496048,2.1472,172.32,172.29,7.31]
[1717749497762,2.1472,172.32,172.28,2.1475]
[1717749497763,2.1474,172.3,172.28,7.31]
[1717749500268,2.1473,172.31,172.28,7.31]
[1717749500449,2.1473,172.31,172.27,2.1477]
[1717749500653,2.1473,172.31,172.28,7.31]
[1717749501451,2.1474,172.3,172.27,2.1477]
[1717749501651,2.1474,172.3,172.28,7.31]
[1717749501851,2.1474,172.3,172.27,9.4577]
[1717749502160,2.1474,172.3,172.26,9.4578]
[1717749502566,4.6351,172.29,172.23,8.7221]
[1717749502749,2.1478,172.27,172.23,9.4582]
[1717749502948,4.2953,172.28,172.23,9.4582]
[1717749503149,2.1478,172.27,172.23,9.4582]
[1717749503860,2.1478,172.27,172.24,2.1481]
[1717749504250,2.1478,172.27,172.24,9.4581]
[1717749504456,2.1478,172.27,172.24,7.31]
[1717749504957,2.1478,172.27,172.24,9.4581]
[1717749505474,4.6351,172.29,172.26,7.31]
[1717749505475,2.4875,172.29,172.26,7.31]
[1717749505650,2.1476,172.28,172.26,7.31]
[1717749505852,2.1476,172.28,172.25,7.31]
[1717749506059,2.1477,172.27,172.25,7.31]
[1717749506367,2.1477,172.27,172.24,2.1481]
[1717749506569,2.1477,172.27,172.25,7.31]